{"text_format":"1","workbook":"xlsx","n_sheets":11,"sheets":["Änderungskontrolle","Startseite","AA","SA","SA_Zeitplan","IA","SiNa","MPP","MP","FM","BA"],"not_rendered":{"charts":0,"images":24,"macros":1,"external_links":0,"defined_names":46,"comments":5,"pivot_tables":0},"unopened":[],"bounds":{"document_bytes":16777216,"sheet_cells":100000,"rows_first":2000,"rows_last":500,"rows_between":2000,"halvings":0,"cell_chars":16384,"cell_head_chars":4096},"cells_cut":0,"cells_raw":0,"read":"whole","date_system":"1900"}

{"sheet":"Änderungskontrolle","index":0,"n_rows":28,"n_cols":4,"rows_kept":28,"cut":false,"hidden":true,"merged":[]}
["Änderungskontrolle"]
["Version","Datum","Ausführende Stelle","Bemerkung"]
[0.01,"2016-05-02","Matthias Taeschler","Dokument erstellt"]
[0.02,"2016-06-08","Matthias Taeschler","Behebung diverser Fehler"]
[0.03,"2016-06-13","Matthias Taeschler","Excel2016 optimiert"]
[0.04,"2016-06-22","Matthias Taeschler","Diverse Detail angepasst"]
[0.05,"2016-07-22","Matthias Taeschler","Diverse Detail und Zellenverbindungen angepasst\nKoordinaten und Baujahr auf SiNa ergänzt\nFertigstellungsanzeige erstellt"]
[0.06,"2016-11-22","Matthias Taeschler","Mappe BA ergänzt"]
[7.0000000000000007E-2,"2017-01-05","Matthias Taeschler","Allgemein: Format Datum, pdf angepasst\nAA: Grösse Arbeitsmethode angepasst, Feld Tätigkeit, Ik und Überspannungskategoerie neu formatiert, Verlinkung AB, AnV angepast, Feld Email Auftraggeber vergrössert, Diverse Schreibfehler angepasst\nSiNa: Formatierung Unterschriftenfelder angepasst, unterste Zeile entfernt\nMPP: unterste Zeile entfernt"]
[0.08,"2017-01-13","Matthias Taeschler","Änderungen gemäss SiKo-Elektro_SCS_SD_V0.07_2017-01-05_Befundliste_DIIM_2017-01-11"]
[0.09,"2017-01-13","Matthias Taeschler","Anpassung Seitenansicht und Benutzerdefiniertes Papierformat; Korrektur Rechtschreibung; Format Koordinaten angepasst"]
[0.1,"2017-02-08","Matthias Taeschler","Änderungen gemäss SiKo-Elektro_SCS_SD_V0.09_2017-01-13_Befundliste_DIIM_2017-02-08"]
["1.0.1","2017-02-12","Matthias Taeschler","Auswahl Eigentümer angepasst, Copyright angepasst"]
["1.0.2","2017-06-16","Matthias Taeschler","Diverse Schreibfehler behoben"]
["1.0.3","2017-10-10","Matthias Taeschler","Allgemein: \nEinzug für O-Nr. vergrössert, I-Nr. an O-Nr.\nausgerichtet\nKurzbefehl \"Speichern unter\" ergänzt\nMP: Zeilen löschen nicht gesperrt"]
["1.0.4","2017-11-06","Matthias Taeschler","Fehlerbehebung Zeitplan SA: Verknüpfung Objektnummer repariert, Zeilenumbruch bei Bemerkung eingefügt, Formatierung Zelle G31 angepasst.\nBefehlsschaltfläche \"Zeile einfügen\" und \"Zeile löschen\" ergänzt.\nFehlerbehebung IA: Berechung Installierte Leistung Total (Fehler in Zeile 30), Schreibschutz Zelle A48 aufgehoben.\nFehlerbehebung SiNa: Zellenverbindung 23-25 bis Spalte G erweitert\nFehlerbehebung MPP: Zellenverbindung 16-18 bis Spalte G erweitert\nFehlerbehebung MP: Verknüpfung Objektnummer repariert, alle Zellen mit Zeilenumbruch formatiert, Zellenschutz Datum aufgehoben, 0 Werte bei Verknüpfungen ausgeblendet, Zeilenhöhe Zeile 10 und 33 angepasst, Kommentar A11 gelöscht. Befehlsschaltfläche \"Zeile einfügen\" und \"Zeile löschen\" ergänzt."]
["1.0.5","2017-11-24","Matthias Taeschler","Fehlerbehebung SiNa: Textaurichtung Zelle A angepasst"]
[]
[]
[]
[]
["Prüfungen"]
["Version","Datum","Prüfende Stelle","Bemerkung"]
[0.01,"2016-06-07","Patrick Ehrler und \nMathias Schindler \nISS","Gemäss Mail:\nVisul Basic Fehler\nFertigstellungsanzeige fehlt"]
[7.0000000000000007E-2,"2017-01-11","Dimitris Imboden","Gemäss SiKo-Elektro_SCS_SD_V0.07_2017-01-05_Befundliste_DIIM_2017-01-11"]
[0.09,"2017-01-21","Dimitris Imboden","Gemäss SiKo-Elektro_SCS_SD_V0.09_2017-01-13_Befundliste_DIIM_2017-02-08"]
["1.0.3","2017-10-10","Dimitris Imboden","Gemäss E-Mail 10.10.2017"]
["1.0.4","2017-11-07","Dimitris Imboden","Gemäss E-Mail 08.11.2017"]

{"sheet":"Startseite","index":1,"n_rows":110,"n_cols":37,"rows_kept":110,"cut":false,"hidden":false,"merged":[[11,4,11,5],[0,0,2,8],[5,2,5,6],[6,2,6,6],[7,2,7,6],[8,3,8,6],[110,0,110,1],[24,9,24,13],[25,9,25,13],[26,10,26,13],[27,9,27,12],[40,5,40,6],[41,2,41,3],[41,5,41,6],[39,0,39,2],[39,3,39,4],[39,5,39,6],[40,0,40,2],[40,3,40,4],[42,0,42,13],[40,7,40,9],[40,10,40,13],[5,9,5,13],[6,9,6,13],[12,9,12,13],[13,2,13,6],[13,9,13,13],[21,3,21,6],[36,0,36,2],[36,3,36,4],[36,5,36,6],[35,7,35,9],[35,10,35,13],[16,2,16,4],[16,5,16,6],[16,9,16,11],[16,12,16,13],[22,9,22,13],[22,2,22,6],[27,2,27,6],[17,4,17,6],[7,9,7,13],[8,10,8,13],[76,3,76,6],[77,3,77,6],[36,7,36,9],[36,10,36,13],[24,2,24,6],[25,2,25,6],[26,3,26,6],[14,3,14,6],[14,10,14,13],[9,2,9,5],[15,2,15,5],[15,9,15,12],[17,9,17,13],[21,9,21,13],[18,9,18,13],[19,9,19,13],[20,9,20,13],[18,2,18,6],[19,2,19,6],[20,2,20,6],[9,9,9,12],[12,2,12,6],[37,0,37,2],[37,3,37,4],[63,1,63,2],[63,3,63,6],[63,7,63,13],[64,1,64,2],[64,3,64,6],[64,7,64,13],[37,5,37,6],[37,7,37,9],[37,10,37,13],[39,7,39,9],[39,10,39,13],[38,0,38,2],[38,3,38,4],[65,1,65,2],[65,3,65,6],[65,7,65,13],[66,1,66,2],[66,3,66,6],[66,7,66,13],[38,5,38,6],[38,7,38,9],[38,10,38,13],[69,1,69,2],[69,3,69,6],[69,7,69,13],[70,1,70,2],[70,3,70,6],[70,7,70,13],[72,3,72,6],[67,1,67,2],[67,3,67,6],[67,7,67,13],[68,1,68,2],[68,3,68,6],[68,7,68,13],[73,1,73,2],[73,7,73,13],[74,1,74,2],[74,7,74,13],[75,1,75,2],[75,7,75,13],[73,3,73,6],[74,3,74,6],[71,1,71,2],[71,3,71,6],[71,7,71,13],[72,1,72,2],[72,7,72,13],[75,3,75,6],[79,1,79,2],[79,3,79,6],[79,7,79,13],[80,1,80,2],[80,3,80,6],[80,7,80,13],[76,1,76,2],[76,7,76,13],[77,1,77,2],[77,7,77,13],[78,1,78,2],[78,3,78,6],[78,7,78,13],[84,1,84,2],[84,3,84,6],[84,7,84,13],[85,1,85,2],[85,3,85,6],[85,7,85,13],[81,1,81,2],[81,3,81,6],[81,7,81,13],[88,1,88,2],[88,3,88,6],[88,7,88,13],[89,1,89,2],[89,3,89,6],[89,7,89,13],[86,1,86,2],[86,3,86,6],[86,7,86,13],[87,1,87,2],[87,3,87,6],[87,7,87,13],[92,1,92,2],[92,3,92,6],[92,7,92,13],[93,1,93,2],[93,3,93,6],[93,7,93,13],[90,1,90,2],[90,3,90,6],[90,7,90,13],[91,1,91,2],[91,3,91,6],[91,7,91,13],[97,1,97,2],[97,3,97,6],[97,7,97,13],[94,1,94,2],[94,3,94,6],[94,7,94,13],[95,1,95,2],[95,3,95,6],[95,7,95,13],[109,0,109,1],[29,2,29,6],[31,2,31,6],[32,3,32,6],[30,2,30,6],[33,2,33,6],[102,1,102,2],[102,3,102,6],[102,7,102,13],[100,1,100,2],[100,3,100,6],[100,7,100,13],[101,1,101,2],[101,3,101,6],[101,7,101,13],[98,1,98,2],[98,3,98,6],[98,7,98,13],[99,1,99,2],[99,3,99,6],[99,7,99,13],[96,1,96,2],[96,3,96,6],[96,7,96,13]]}
["Startseite"]
[]
[]
["Grunddaten",null,null,null,null,null,null,null,null,null,null,null,null,null,null,null,null,null,null,null,null,null,null,null,null,null,null,null,null,null,null,null,null,null,null," "," "]
["Eigentümer der Installation",null,null,null,null,null,null,"Verwaltung",null,null,null,null,null,null,null,null,null,null,null,null,null,null,null,null,null,null,null,null,null,null,null,null,null,null,null,"Elektrofachkraft","Mitarbeiter Arbeitsteam"]
["Name 1",null,null,null,null,null,null,"Name 1",null," ",null,null,null,null,null,null,null,null,null,null,null,null,null,null,null,null,null,null,null,null,null,null,null,null,null,"Elektrofachkraft Kleinspannung","Besucher"]
["Name 2",null," ",null,null,null,null,"Name 2",null," ",null,null,null,null,null,null,null,null,null,null,null,null,null,null,null,null,null,null,null,null,null,null,null,null,null,"Elektrofachkraft Niderspannung"]
["Strasse, Nr.",null,{"$f":"IF(C6=\"Swisscom AG\",\"Alte Tiefenaustrasse 6\",IF(C6=\"Swisscom Broadcast AG\",\"Ostermundigerstrasse 99\",IF(ISBLANK(C6),\"\")))","v":""},null,null,null,null,"Strasse, Nr.",null," ",null,null,null,null,null,null,null,null,null,null,null,null,null,null,null,null,null,null,null,null,null,null,null,null,null,"Elektrofachkraft Hochspannung"]
["PLZ,  Ort",null,3050,"Bern",null,null,null,"PLZ,  Ort",null," "," ",null,null,null,null,null,null,null,null,null,null,null,null,null,null,null,null,null,null,null,null,null,null,null,null,"Elektrofachkraft Kontrolle"]
["Telefon",null," ",null,null,null,null,"Telefon",null," ",null,null,null,null,null,null,null,null,null,null,null,null,null,null,null,null,null,null,null,null,null,null,null,null,null,"Elektrofachkraft Inspektion"]
["Auftragnehmer",null,null,null,null,null,null,"Auftragnehmer",null,null,null,null,null,null,null,null,null,null,null,null,null,null,null,null,null,null,null,null,null,null,null,null,null,null,null,"Unterwiesene Person"]
["Elektro-Installateur",null,null,"I-Nr.",null,null,null,"Unabhängiges Kontrollorgan",null,null,null,null,"K-Nr. ",null,null,null,null,null,null,null,null,null,null,null,null,null,null,null,null,null,null,null,null,null,null,"Laie"]
["Name",null,null,null,null,null,null,"Name"]
["Strasse, Nr.",null,null,null,null,null,null,"Strasse, Nr."]
["PLZ,  Ort",null,null,null,null,null,null,"PLZ, Ort"]
["Telefon",null,null,null,null,null,null,"Telefon"]
["Kontrollart/Datum",null,null,null,null,null,null,"Kontrollart/Datum"]
["Ort der Installation",null,null,"O-Nr.",null,null,null,"SD-Nr."]
["Anlage",null,null,null,null,null,null,"Gebäudeart"]
["Stromkunde",null,null,null,null,null,null,"Zähler Nr."]
["Strasse, Nr.",null,null,null,null,null,null,"Lage"]
["PLZ,  Ort",null,null,null,null,null,null,"Nutzung"]
["Koordinaten",null,null,null,null,null,null,"Baujahr"]
["Netzbetreiber",null,null,null,null,null,null,"Stromkunde"]
["Name",null,null,null,null,null,null,"Name",null,"swenex - swiss energy exchange Ltd"]
["Strasse, Nr.",null,null,null,null,null,null,"Strasse, Nr.",null,"Postfach 2260"]
["PLZ,  Ort",null,null,null,null,null,null,"PLZ,  Ort",null,"6010","Kriens 2"]
["E-Mail",null," ",null,null,null,null,"E-Mail",null," "]
["Auftraggeber"]
["Firma"]
["Kontaktperson"]
["Strasse, Nr."]
["PLZ,  Ort"]
["E-Mail"]
["Personal und Verantwortung"]
["Name, Vorname",null,null,"Telefon",null,"Unternehmen",null,"Funktion",null,null,"Qualifikation gemäss SiKo Elektro"]
[null,null,null,null,null,null,null,"Anlagenbetreiber"]
[null,null,null,null,null,null,null,"Anlagenverantwortlicher"]
[null,null,null,null,null,null,null,"Arbeitsverantwortlicher "]
[" ",null,null," ",null," ",null,null,null,null," "]
[null,null,null," ",null," ",null," ",null,null," "]
[]
[]
[]
[]
[]
[]
[]
[]
[]
[]
[]
[]
[]
[]
[]
[]
[]
[]
[]
[]
[]
[]
[]
[]
[]
[]
[]
[]
[]
[]
[]
[]
[]
[]
[]
[]
[]
[]
[]
[]
[]
[]
[]
[]
[]
[]
[]
[]
[]
[]
[]
[]
[]
[]
[]
[]
[]
[]
[]
[]
[]
[]
[]
[]
[{"$f":"F18","v":0}]
[]
[]
[{"$f":"C19","v":0}]
[{"$f":"TODAY()","v":"2020-07-06"}]

{"sheet":"AA","index":2,"n_rows":56,"n_cols":14,"rows_kept":56,"cut":false,"hidden":false,"merged":[[28,12,28,13],[26,0,26,2],[26,3,26,4],[26,5,26,6],[26,7,26,9],[26,10,26,13],[25,0,25,2],[25,3,25,4],[25,5,25,6],[25,7,25,9],[25,10,25,13],[23,7,23,9],[23,10,23,13],[24,0,24,2],[24,3,24,4],[24,5,24,6],[24,7,24,9],[24,10,24,13],[22,7,22,9],[22,10,22,13],[23,0,23,2],[13,3,13,6],[15,0,16,6],[17,2,17,3],[19,2,19,13],[18,2,18,3],[18,5,18,6],[17,5,17,6],[13,9,13,13],[22,0,22,2],[22,3,22,4],[22,5,22,6],[23,3,23,4],[23,5,23,6],[10,2,10,6],[11,2,11,6],[12,2,12,6],[10,9,10,13],[11,9,11,13],[12,9,12,13],[9,9,9,13],[7,3,7,6],[7,9,7,12],[8,9,8,11],[8,12,8,13],[8,2,8,6],[9,4,9,6],[4,2,4,6],[4,9,4,13],[5,2,5,6],[5,9,5,13],[6,2,6,6],[6,10,6,13],[50,3,50,6],[50,10,50,13],[48,3,48,6],[49,3,49,6],[48,10,48,13],[49,10,49,13],[53,10,53,13],[55,2,55,13],[51,3,51,6],[52,3,52,6],[53,3,53,6],[51,10,51,13],[52,10,52,13]]}
[]
[]
[]
["Auftraggeber",null,null,null,null,null,null,"Auftragnehmer",null,null,null,null,"I/K-Nr. ",{"$f":"IF(Startseite!E12=\"\",Startseite!N12,Startseite!E12)","v":0}]
["Firma",null,{"$f":"Startseite!C30","v":0},null,null,null,null,"Name",null,{"$f":"IF(Startseite!C13=\"\",Startseite!J13,Startseite!C13)","v":0}]
["Kontaktperson",null,{"$f":"Startseite!C31","v":0},null,null,null,null,"Strasse, Nr.",null,{"$f":"IF(Startseite!C14=\"\",Startseite!J14,Startseite!C14)","v":0}]
["Strasse, Nr.",null,{"$f":"Startseite!C32","v":0},null,null,null,null,"PLZ, Ort",null,{"$f":"IF(Startseite!C15=\"\",Startseite!J15,Startseite!C15)","v":0},{"$f":"IF(Startseite!D15=\"\",Startseite!K15,Startseite!D15)","v":0}]
["PLZ,  Ort",null,{"$f":"Startseite!C33","v":0},{"$f":"Startseite!D33","v":0},null,null,null,"Telefon",null,{"$f":"IF(Startseite!C16=\"\",Startseite!J16,Startseite!C16)","v":0}]
["E-Mail",null,{"$f":"Startseite!C34","v":0},null,null,null,null,"Datum",null,{"$f":"TODAY()","v":"2020-07-06"}]
["Ort der Installation",null,null,"O-Nr.",{"$f":"Startseite!E18","v":0},null,null,"SD-Nr.",null,{"$f":"Startseite!J18","v":0}]
["Anlage",null,{"$f":"Startseite!C19","v":0},null,null,null,null,"Gebäudeart",null,{"$f":"Startseite!J19","v":0}]
["Stromkunde",null,{"$f":"Startseite!C20","v":0},null,null,null,null,"Zähler Nr.",null,{"$f":"Startseite!J20","v":0}]
["Strasse, Nr.",null,{"$f":"Startseite!C21","v":0},null,null,null,null,"Lage",null,{"$f":"Startseite!J21","v":0}]
["PLZ,  Ort",null,{"$f":"Startseite!C22","v":0},{"$f":"Startseite!D22","v":0},null,null,null,"Nutzung",null,{"$f":"Startseite!J22","v":0}]
["Tätigkeit",null,null,null,null,null,null,"Arbeitsmethode"]
[]
[]
["Datum","von",null,null,"bis"]
["Zeit","von",null,null,"bis"]
["Bemerkung"]
["Personal"]
["Name, Vorname",null,null,"Telefon",null,"Unternehmen",null,"Funktion",null,null,"Qualifikation gemäss SiKo Elektro"]
[{"$f":"Startseite!A37","v":0},null,null,{"$f":"Startseite!D37","v":0},null,{"$f":"Startseite!F37","v":0},null,{"$f":"Startseite!H37","v":"Anlagenbetreiber"},null,null,{"$f":"Startseite!K37","v":0}]
[{"$f":"Startseite!A38","v":0},null,null,{"$f":"Startseite!D38","v":0},null,{"$f":"Startseite!F38","v":0},null,{"$f":"Startseite!H38","v":"Anlagenverantwortlicher"},null,null,{"$f":"Startseite!K38","v":0}]
[{"$f":"Startseite!A39","v":0},null,null,{"$f":"Startseite!D39","v":0},null,{"$f":"Startseite!F39","v":0},null,{"$f":"Startseite!H39","v":"Arbeitsverantwortlicher "},null,null,{"$f":"Startseite!K39","v":0}]
[{"$f":"Startseite!A40","v":" "},null,null,{"$f":"Startseite!D40","v":" "},null,{"$f":"Startseite!F40","v":" "},null,{"$f":"Startseite!H40","v":0},null,null,{"$f":"Startseite!K40","v":" "}]
[{"$f":"Startseite!A41","v":0},null,null,{"$f":"Startseite!D41","v":" "},null,{"$f":"Startseite!F41","v":" "},null,{"$f":"Startseite!H41","v":" "},null,null,{"$f":"Startseite!K41","v":" "}]
["Arbeitsschutz",null,null,null,null,null,null,"Überspannungskategorie Messtechnik"]
[null,null,null,null,null,null,null,"Erwarteter Kurzschlussstrom / Vorsicherung"]
[]
[]
[]
[]
[]
[]
[]
[]
[]
[]
[]
["Zusätzliche Massnahmen Hochspannung"]
[]
[]
[]
["Unterschriften "]
["Der Arbeitsverantwortliche bestätigt hiermit, dass er vollständig über die Risiken und Gefahren bei den Arbeiten an den "]
["elektrischen Anlage Swisscom AG informiert ist und die entsprechenden Sicherheitsregeln vollumfänglich anwendet. "]
["Der Anlagenverantwortliche resp. Anlagenbetreiber erteilt hiermit die Durchführungserlaubnis der oben aufgeführten Tätigkeit."]
["Arbeitsverantwortlicher",null,null,{"$f":"Startseite!A39","v":0},null,null,null,"Anlagenverantwortlicher",null,null,{"$f":"Startseite!A38","v":0}]
["Ort, Datum",null,null,null,null,null,null,"Ort, Datum"]
["Unterschrift",null,null,null,null,null,null,"Unterschrift"]
["Beilagen",null,null,null,null,null,null,"Anlagenbetreiber",null,null,{"$f":"Startseite!A37","v":0}]
[null,null,null,null,null,null,null,"Ort, Datum"]
[null,null,null,null,null,null,null,"Unterschrift"]
["Anlagenbetreiber / Anlagenverantwortlicher"]
["Auflagen:"]

{"sheet":"SA","index":3,"n_rows":56,"n_cols":14,"rows_kept":56,"cut":false,"hidden":false,"merged":[[16,5,16,6],[18,2,18,13],[15,9,15,10],[15,12,15,13],[16,9,16,10],[16,12,16,13],[21,10,21,13],[9,9,9,13],[10,9,10,13],[11,9,11,13],[12,9,12,13],[17,2,17,13],[9,4,9,6],[15,2,15,3],[13,3,13,6],[13,9,13,13],[21,0,21,2],[21,3,21,4],[21,5,21,6],[21,7,21,9],[15,5,15,6],[16,2,16,3],[22,5,22,6],[22,7,22,9],[4,2,4,6],[4,9,4,13],[5,2,5,6],[5,9,5,13],[6,2,6,6],[6,10,6,13],[10,2,10,6],[11,2,11,6],[12,2,12,6],[7,3,7,6],[7,9,7,12],[8,2,8,5],[8,9,8,11],[8,12,8,13],[54,10,54,13],[25,10,25,13],[40,4,40,7],[40,8,40,11],[22,10,22,13],[23,10,23,13],[24,10,24,13],[38,0,38,6],[38,7,38,13],[26,12,26,13],[24,0,24,2],[24,3,24,4],[24,5,24,6],[24,7,24,9],[22,0,22,2],[22,3,22,4],[44,8,44,11],[41,4,41,7],[41,8,41,11],[42,0,42,3],[42,4,42,7],[42,8,42,11],[43,4,43,7],[43,8,43,11],[41,0,41,3],[44,0,44,3],[23,0,23,2],[23,3,23,4],[23,5,23,6],[23,7,23,9],[25,0,25,2],[25,3,25,4],[25,5,25,6],[25,7,25,9],[55,3,55,6],[55,10,55,13],[27,12,27,13],[50,3,50,6],[50,10,50,13],[51,3,51,6],[51,10,51,13],[52,3,52,6],[52,10,52,13],[40,0,40,3],[33,0,33,13],[53,3,53,6],[53,10,53,13],[43,0,43,3],[54,3,54,6],[44,4,44,7]]}
[]
[]
[]
["Eigentümer der Installation",null,null,null,null,null,null,"Auftragnehmer",null,null,null,null,"I/K-Nr. ",{"$f":"IF(Startseite!E12=\"\",Startseite!N12,Startseite!E12)","v":0}]
["Name 1",null,{"$f":"Startseite!C6","v":0},null,null,null,null,"Name",null,{"$f":"IF(Startseite!C13=\"\",Startseite!J13,Startseite!C13)","v":0}]
["Name 2",null,{"$f":"Startseite!C7","v":" "},null,null,null,null,"Strasse, Nr.",null,{"$f":"IF(Startseite!C14=\"\",Startseite!J14,Startseite!C14)","v":0}]
["Strasse, Nr.",null,{"$f":"Startseite!C8","v":""},null,null,null,null,"PLZ, Ort",null,{"$f":"IF(Startseite!C15=\"\",Startseite!J15,Startseite!C15)","v":0},{"$f":"IF(Startseite!D15=\"\",Startseite!K15,Startseite!D15)","v":0}]
["PLZ,  Ort",null,{"$f":"Startseite!C9","v":3050},{"$f":"Startseite!D9","v":"Bern"},null,null,null,"Telefon",null,{"$f":"IF(Startseite!C16=\"\",Startseite!J16,Startseite!C16)","v":0}]
["Telefon",null,{"$f":"Startseite!C10","v":" "},null,null,null,null,"Datum",null,{"$f":"TODAY()","v":"2020-07-06"}]
["Ort der Installation",null,null,"O-Nr.",{"$f":"Startseite!E18","v":0},null,null,"SD-Nr.",null,{"$f":"Startseite!J18","v":0}]
["Anlage",null,{"$f":"Startseite!C19","v":0},null,null,null,null,"Gebäudeart",null,{"$f":"Startseite!J19","v":0}]
["Stromkunde",null,{"$f":"Startseite!C20","v":0},null,null,null,null,"Zähler Nr.",null,{"$f":"Startseite!J20","v":0}]
["Strasse, Nr.",null,{"$f":"Startseite!C21","v":0},null,null,null,null,"Lage",null,{"$f":"Startseite!J21","v":0}]
["PLZ,  Ort",null,{"$f":"Startseite!C22","v":0},{"$f":"Startseite!D22","v":0},null,null,null,"Nutzung",null,{"$f":"Startseite!J22","v":0}]
["Schaltungen"]
["Datum","von",null,null,"bis",null,null,"Datum","von",null,null,"bis"]
["Zeit","von",null,null,"bis",null,null,"Zeit","von",null,null,"bis"]
["Bemerkung"]
["Grund"]
["Verantwortliches Personal"]
["Name, Vorname",null,null,"Telefon / Funk",null,"Unternehmen",null,"Funktion",null,null,"Qualifikation gemäss SiKo Elektro"]
[{"$f":"Startseite!A37","v":0},null,null,{"$f":"Startseite!D37","v":0},null,{"$f":"Startseite!F37","v":0},null,{"$f":"Startseite!H37","v":"Anlagenbetreiber"},null,null,{"$f":"Startseite!K37","v":0}]
[{"$f":"Startseite!A38","v":0},null,null,{"$f":"Startseite!D38","v":0},null,{"$f":"Startseite!F38","v":0},null,{"$f":"Startseite!H38","v":"Anlagenverantwortlicher"},null,null,{"$f":"Startseite!K38","v":0}]
[{"$f":"Startseite!A39","v":0},null,null,{"$f":"Startseite!D39","v":0},null,{"$f":"Startseite!F39","v":0},null,{"$f":"Startseite!H39","v":"Arbeitsverantwortlicher "},null,null,{"$f":"Startseite!K39","v":0}]
[{"$f":"Startseite!A40","v":" "},null,null,{"$f":"Startseite!D40","v":" "},null,{"$f":"Startseite!F40","v":" "},null,{"$f":"Startseite!H40","v":0},null,null,{"$f":"Startseite!K40","v":" "}]
[{"$f":"Startseite!A41","v":0},null,null,{"$f":"Startseite!D41","v":" "},null,{"$f":"Startseite!F41","v":" "},null,{"$f":"Startseite!H41","v":" "},null,null,{"$f":"Startseite!K41","v":" "}]
["Arbeitsschutz / Regeln"]
[]
[]
[]
[]
[]
["Zusätzliche Vorschriften und Weisungen:"]
[]
["Änderungen",null,null,null,null,null,null,"Erfoderliche Massnahmen"]
[]
[]
[]
[]
["Avisierung"]
["Wo",null,null,null,"Zeitraum",null,null,null,"Wer",null,null,null,"Anzahl","KW"]
[]
[]
[]
[]
["Unterschriften "]
["Der Arbeitsverantwortliche bestätigt hiermit, dass er vollständig über die Risiken und Gefahren bei den Arbeiten an den "]
["elektrischen Anlage Swisscom AG informiert ist und die entsprechenden Sicherheitsregeln vollumfänglich anwendet. "]
["Der Anlagenverantwortliche resp. Anlagenbetreiber erteilt hiermit die Durchführungserlaubnis der oben aufgeführten Schaltung."]
["Auftragnehmer",null,null,null,null,null,null,"Kontrolle / Inkraftsetzung"]
["Arbeitsverantwortlicher",null,null,{"$f":"Startseite!A91","v":0},null,null,null,"Anlagenverantwortlicher",null,null,{"$f":"Startseite!A89","v":0}]
["Ort, Datum",null,null,null,null,null,null,"Ort, Datum"]
["Unterschrift",null,null,null,null,null,null,"Unterschrift"]
["Beilagen",null,null,null,null,null,null,"Anlagenbetreiber",null,null,{"$f":"Startseite!A90","v":0}]
[null,null,null,null,null,null,null,"Ort, Datum"]
[null,null,null,null,null,null,null,"Unterschrift"]

{"sheet":"SA_Zeitplan","index":4,"n_rows":37,"n_cols":10,"rows_kept":37,"cut":false,"hidden":false,"merged":[[35,0,36,8],[3,1,3,2],[3,6,3,8],[3,10,3,15],[4,0,5,0],[4,1,5,1],[4,2,5,2],[4,3,5,3],[4,4,5,4],[4,5,5,5],[4,6,5,6],[4,7,5,7],[4,8,5,8]]}
[]
[]
[]
["Anlage",{"$f":"Startseite!C19","v":0},null,"SD-Nr.",{"$f":"Startseite!J18","v":0},"O-Nr.",{"$f":"Startseite!E18","v":0}]
["Pos.","Soll- Zeit","Ausführungs- verantwortlicher","Ort","Anlageteil / Netz","Tätigkeit","Opera-tion","Ist-  Zeit","Visum"]
[]
[0]
[1]
[2]
[3]
[4]
[5]
[6]
[7]
[8]
[9]
[10]
[11]
[12]
[13]
[14]
[15]
[16]
[17]
[18]
[19]
[20]
[21]
[22]
[23]
[24]
[25]
[26]
[null,null,null,null,null,null,null,null,null,"1"]
["Bemerkungen:",null,null,null,null,null,null,null,null,1]
[null,null,null,null,null,null,null,null,null,1]
[null,null,null,null,null,null,null,null,null,1]

{"sheet":"IA","index":5,"n_rows":56,"n_cols":14,"rows_kept":56,"cut":false,"hidden":false,"merged":[[53,10,53,13],[54,10,54,13],[55,10,55,13],[55,0,55,6],[47,11,47,13],[47,0,47,8],[49,10,49,13],[50,10,50,13],[51,10,51,13],[51,0,51,6],[49,2,49,6],[43,4,43,6],[42,4,42,6],[46,7,46,8],[47,9,47,10],[41,0,41,3],[41,7,41,8],[41,9,41,11],[40,0,40,3],[40,7,40,8],[40,9,40,11],[39,0,39,3],[39,7,39,8],[39,9,39,11],[35,12,35,13],[38,0,38,3],[38,7,38,8],[38,9,38,11],[37,9,37,13],[36,9,36,11],[37,0,37,3],[25,7,25,9],[32,7,32,9],[26,1,26,6],[26,7,26,9],[27,1,27,6],[27,7,27,9],[28,1,28,6],[28,7,28,9],[29,1,29,6],[25,1,25,6],[29,7,29,9],[30,1,30,6],[30,7,30,9],[31,1,31,6],[31,7,31,9],[32,1,32,6],[20,0,21,13],[13,3,13,6],[13,9,13,13],[24,1,24,6],[24,7,24,9],[15,9,15,13],[16,9,16,13],[17,10,17,13],[18,9,18,12],[15,2,15,6],[16,2,16,6],[17,3,17,6],[18,2,18,5],[23,1,23,6],[23,7,23,9],[10,2,10,6],[10,9,10,13],[11,2,11,6],[11,9,11,13],[12,2,12,6],[12,9,12,13],[9,9,9,13],[4,2,4,6],[4,9,4,13],[5,2,5,6],[5,9,5,13],[6,2,6,6],[6,10,6,13],[7,3,7,6],[7,9,7,12],[8,2,8,5],[8,9,8,11],[8,12,8,13],[9,4,9,6]]}
[]
[]
[]
["Eigentümer der Installation",null,null,null,null,null,null,"Auftragnehmer",null,null,null,null,"I-Nr. ",{"$f":"Startseite!E12","v":0}]
["Name 1",null,{"$f":"Startseite!C6","v":0},null,null,null,null,"Name",null,{"$f":"Startseite!C13","v":0}]
["Name 2",null,{"$f":"Startseite!C7","v":" "},null,null,null,null,"Strasse, Nr.",null,{"$f":"Startseite!C14","v":0}]
["Strasse, Nr.",null,{"$f":"Startseite!C8","v":""},null,null,null,null,"PLZ, Ort",null,{"$f":"Startseite!C15","v":0},{"$f":"Startseite!D15","v":0}]
["PLZ,  Ort",null,{"$f":"Startseite!C9","v":3050},{"$f":"Startseite!D9","v":"Bern"},null,null,null,"Telefon",null,{"$f":"Startseite!C16","v":0}]
["Telefon",null,{"$f":"Startseite!C10","v":" "},null,null,null,null,"Datum",null,{"$f":"TODAY()","v":"2020-07-06"}]
["Ort der Installation",null,null,"O-Nr.",{"$f":"Startseite!E18","v":0},null,null,"SD-Nr.",null,{"$f":"Startseite!J18","v":0}]
["Anlage",null,{"$f":"Startseite!C19","v":0},null,null,null,null,"Gebäudeart",null,{"$f":"Startseite!J19","v":0}]
["Stromkunde",null,{"$f":"Startseite!C20","v":0},null,null,null,null,"Zähler Nr.",null,{"$f":"Startseite!J20","v":0}]
["Strasse, Nr.",null,{"$f":"Startseite!C21","v":0},null,null,null,null,"Lage",null,{"$f":"Startseite!J21","v":0}]
["PLZ,  Ort",null,{"$f":"Startseite!C22","v":0},{"$f":"Startseite!D22","v":0},null,null,null,"Nutzung",null,{"$f":"Startseite!J22","v":0}]
["Netzbetreiber",null,null,null,null,null,null,"Stromkunde"]
["Name",null,{"$f":"Startseite!C25","v":0},null,null,null,null,"Name",null,{"$f":"Startseite!J25","v":"swenex - swiss energy exchange Ltd"}]
["Strasse, Nr.",null,{"$f":"Startseite!C26","v":0},null,null,null,null,"Strasse, Nr.",null,{"$f":"Startseite!J26","v":"Postfach 2260"}]
["PLZ,  Ort",null,{"$f":"Startseite!C27","v":0},{"$f":"Startseite!D27","v":0},null,null,null,"PLZ,  Ort",null,{"$f":"Startseite!J27","v":"6010"},{"$f":"Startseite!K27","v":"Kriens 2"}]
["E-Mail",null,{"$f":"Startseite!C28","v":" "},null,null,null,null,"E-Mail",null,{"$f":"Startseite!J28","v":" "}]
["Installation"]
[]
[]
["Verbraucher"]
["Anzahl","Verbraucher",null,null,null,null,null,"Anschlussgesuch",null,null,"kVa","1L+N","2L+N","3L+N"]
[]
[]
[]
[]
[]
[]
[]
[]
[]
["Installierte Leistung Total",null,null,null,{"$f":"((A25*K25)+(A26*K26)+(A27*K27)+(A28*K28)+(A29*K29)+(A30*K30)+(A31*K31)+(A32*K32)+(A33*K33))","v":0},"kVA",null,"Voraussichtlichw Maximalbelastung Total",null,null,null,null,null,"kVa"]
["Blindleistungskompensation",null,null,null,null,null,null,null,null,"kVAR"]
["Energieerzeugungsanlage",null,null,null,null,"kVA",null,null,null,"Anschlussgesuch vom:"]
["Tarifapparate",null,null,null,"TRE Anzahl:",null,null,"Kommando:"]
["Kunde",null,null,null,"Stockw.","Tarif","Sich. (A)","Zähler / TRE-Nr.",null,"Montageort"]
[]
[]
[]
[]
["Geplante Inbetriebsetzung"]
["Hausanschluss",null,null,"Standort",null,null,null,null,null,"Erder",null,"Schuztmassnahmen"]
[null,null," ","A"," ","mm2"]
[]
["Erforderlicher AS-Überstromunterbr.",null,null,null," ","A","Modell"," "]
[]
["Beilagen",null,null,null,null,null,null,"Installateur"]
[null,null,null,null,null,null,null,"Name, Vorname"]
["Bemerkung",null,null,null,null,null,null,"Ort, Datum"]
[null,null,null,null,null,null,null,"Unterschrift"]
["Entscheid des Werkes",null,null,null,null,null,null,"Netzbetreiber"]
[null,null,null,null,null,null,null,"Name, Vorname"]
["Bemerkung",null,null,null,null,null,null,"Ort, Datum"]
[null,null,null,null,null,null,null,"Unterschrift"]

{"sheet":"SiNa","index":6,"n_rows":53,"n_cols":44,"rows_kept":53,"cut":false,"hidden":false,"merged":[[26,2,27,6],[43,3,43,6],[43,0,43,2],[43,7,43,10],[28,10,28,11],[30,7,30,10],[29,3,29,4],[30,3,30,4],[31,10,31,11],[29,10,29,11],[37,0,37,13],[38,0,38,13],[39,0,39,13],[33,2,34,12],[10,9,10,13],[10,2,10,6],[8,9,8,12],[8,2,8,5],[14,9,14,11],[14,12,14,13],[14,2,14,4],[14,5,14,6],[11,9,11,13],[12,10,12,13],[11,2,11,6],[9,4,9,5],[4,2,4,6],[5,2,5,6],[6,2,6,6],[7,3,7,6],[4,9,4,13],[5,9,5,13],[6,9,6,13],[7,10,7,13],[50,0,50,4],[12,3,12,6],[13,9,13,12],[13,2,13,5],[31,3,31,4],[16,2,16,6],[17,2,17,6],[18,2,18,6],[19,3,19,6],[27,9,27,12],[45,8,45,10],[45,4,45,5],[45,1,45,2],[32,3,32,4],[16,9,16,13],[15,4,15,6],[25,9,25,12],[23,9,23,12],[18,9,18,13],[19,9,19,13],[21,9,21,12],[22,9,22,12],[23,0,24,6],[20,2,20,6],[20,9,20,13],[15,9,15,13],[17,9,17,13],[22,0,22,6],[24,9,24,12]]}
[null,null,null,null,null,null,null,null,null,null,null,null,null,null,null,null,null,null,null,null,null,null,null,null,null,null,null,null,null,null,null,null,"Norm:","Anlage:","Kontrolle","Kontrollperiode","Schutzorgan","Strom","Netzsystem","Zustand",null,null,null,"Installation"]
[null,null,null,null,null,null,null,null,null,null,null,null,null,null,null,null,null,null,null,null,null,null,null,null,null,null,null,null,null,null,null,null,null,null," "]
[null,null,null,null,null,null,null,null,null,null,null,null,null,null,null,null,null,null,null,null,null,null,null,null,null,null,null,null,null,null,null,null,"HV SEV 1000.1-1960","Bestehend","Periodische Kontrolle","1 Jahr","LSB",10,"TNS","Sehr Gut. Die Anlage ist Konform mit den aktuellen anerkannten Regeln der Technik. ",null,null,null,"Erweiterung"]
["Eigentümer der Installation",null,null,null,null,null,null,"Verwaltung",null,null,null,null,null,null,null,null,null,null,null,null,null,null,null,null,null,null,null,null,null,null,null,null,"HV SEV 1000.1-1974","Neu","Abnahmekontrolle","3 Jahre","LSC",13,"TNC","Gut. Die Anlage ist Konform mit den aktuellen anerkannten Regeln der Technik. ",null,null,null,"Ersatz"]
["Name 1",null,{"$f":"Startseite!C6","v":0},null,null,null,null,"Name 1",null,{"$f":"Startseite!J6","v":" "},null,null,null,null,null,null,null,null,null,null,null,null,null,null,null,null,null,null,null,null,null,null,"HV SEV 1000.1-1985","Änderung","Schlusskontrolle","5 Jahre","LSD",16,"TN-C-S","Gut. Die Anlage ist Konform mit den anerkannten Regeln der Technik bei Erstellung der Anlage. Verbesserung im Personen- und Sachenschutz möglich",null,null,null,"Änderung"]
["Name 2",null,{"$f":"Startseite!C7","v":" "},null,null,null,null,"Name 2",null,{"$f":"Startseite!J7","v":" "},null,null,null,null,null,null,null,null,null,null,null,null,null,null,null,null,null,null,null,null,null,null,"NIN SEV 1000:1997","Erweiterung"," ","5 Jahre (SCH III)","Leistungsschalter",20,"TT","Gut. Die Anlage ist Konform mit den anerkannten Regeln der Technik bei Erstellung der Anlage. Verbesserung im Personen- und Sachenschutz sowie EMV möglich",null,null,null,"Installation "]
["Strasse, Nr.",null,{"$f":"Startseite!C8","v":""},null,null,null,null,"Strasse, Nr.",null,{"$f":"Startseite!J8","v":" "},null,null,null,null,null,null,null,null,null,null,null,null,null,null,null,null,null,null,null,null,null,null,"NIN SEV 1000:2000",null,null,"10 Jahre","DI,gG",25,"IT","Gut. Die Anlage ist Konform mit den anerkannten Regeln der Technik bei Erstellung der Anlage. Verbesserung EMV möglich",null,null,null,"Installation Zuleitung"]
["PLZ,  Ort",null,{"$f":"Startseite!C9","v":3050},{"$f":"Startseite!D9","v":"Bern"},null,null,null,"PLZ,  Ort",null,{"$f":"Startseite!J9","v":" "},{"$f":"Startseite!K9","v":" "},null,null,null,null,null,null,null,null,null,null,null,null,null,null,null,null,null,null,null,null,null,"NIN SEV 1000:2005",null,null,"20 Jahre","DII,gG",32,null,"Genügend. Die Anlage ist Konform mit den anerkannten Regeln der Technik bei Erstellung der Anlage. Verbesserung im Personen- und Sachenschutz möglich",null,null,null,"Komplette Installation "]
["Telefon",null,{"$f":"Startseite!C10","v":" "},null,null,null,null,"Telefon",null,{"$f":"Startseite!J10","v":" "},null,null,null,null,null,null,null,null,null,null,null,null,null,null,null,null,null,null,null,null,null,null,"NIN SEV 1000:2010",null,null,null,"DIII,gG",40,null,"Genügend. Die Anlage ist Konform mit den anerkannten Regeln der Technik bei Erstellung der Anlage. Verbesserung im Personen- und Sachenschutz möglich und dringend empfohlen",null,null,null,"Installation Grundausbau"]
["Elektro-Installateur",null,null,"I-Nr.",{"$f":"Startseite!E12","v":0},null,null,"Unabhängiges Kontrollorgan",null,null,null,null,"K-Nr. ",{"$f":"Startseite!N12","v":0},null,null,null,null,null,null,null,null,null,null,null,null,null,null,null,null,null,null,"NIN SN 411000:2015",null,null,null,"DIV,gG",50,null,null,null,null,null,"Installation Mieterausbau"]
["Name",null,{"$f":"Startseite!C13","v":0},null,null,null,null,"Name",null,{"$f":"Startseite!J13","v":0},null,null,null,null,null,null,null,null,null,null,null,null,null,null,null,null,null,null,null,null,null,null,"NIN SN 411000:2020",null,null,null,"NH000,gG",63]
["Strasse, Nr.",null,{"$f":"Startseite!C14","v":0},null,null,null,null,"Strasse, Nr.",null,{"$f":"Startseite!J14","v":0},null,null,null,null,null,null,null,null,null,null,null,null,null,null,null,null,null,null,null,null,null,null,"EN 60950",null,null,null,"NH00,gG",80]
["PLZ,  Ort",null,{"$f":"Startseite!C15","v":0},{"$f":"Startseite!D15","v":0},null,null,null,"PLZ, Ort",null,{"$f":"Startseite!J15","v":0},{"$f":"Startseite!K15","v":0},null,null,null,null,null,null,null,null,null,null,null,null,null,null,null,null,null,null,null,null,null,"EN 60204",null,null,null,"NH1,gG",100]
["Telefon",null,{"$f":"Startseite!C16","v":0},null,null,null,null,"Telefon",null,{"$f":"Startseite!J16","v":0},null,null,null,null,null,null,null,null,null,null,null,null,null,null,null,null,null,null,null,null,null,null,"EN 61439",null,null,null,"NH2,gG",125]
["Kontrollart/Datum",null,{"$f":"Startseite!C17","v":0},null,null,{"$f":"Startseite!F17","v":"00:00:00"},null,"Kontrollart/Datum",null,{"$f":"Startseite!J17","v":0},null,null,{"$f":"Startseite!M17","v":"00:00:00"},null,null,null,null,null,null,null,null,null,null,null,null,null,null,null,null,null,null,null,null,null,null,null,"NH3,gG",150]
["Ort der Installation",null,null,"O-Nr.",{"$f":"Startseite!E18","v":0},null,null,"SD-Nr.",null,{"$f":"Startseite!J18","v":0},null,null,null,null,null,null,null,null,null,null,null,null,null,null,null,null,null,null,null,null,null,null,null,null,null,null,"NH4,gG",160]
["Anlage",null,{"$f":"Startseite!C19","v":0},null,null,null,null,"Gebäudeart",null,{"$f":"Startseite!J19","v":0},null,null,null,null,null,null,null,null,null,null,null,null,null,null,null,null,null,null,null,null,null,null,null,null,null,null,"G2, gG",200]
["Stromkunde",null,{"$f":"Startseite!C20","v":0},null,null,null,null,"Zähler Nr.",null,{"$f":"Startseite!J20","v":0},null,null,null,null,null,null,null,null,null,null,null,null,null,null,null,null,null,null,null,null,null,null,null,null,null,null,"G4, gG",225]
["Strasse, Nr.",null,{"$f":"Startseite!C21","v":0},null,null,null,null,"Lage",null,{"$f":"Startseite!J21","v":0},null,null,null,null,null,null,null,null,null,null,null,null,null,null,null,null,null,null,null,null,null,null,null,null,null,null,"G6, gG",250]
["PLZ,  Ort",null,{"$f":"Startseite!C22","v":0},{"$f":"Startseite!D22","v":0},null,null,null,"Nutzung",null,{"$f":"Startseite!J22","v":0},null,null,null,null,null,null,null,null,null,null,null,null,null,null,null,null,null,null,null,null,null,null,null,null,null,null,"Motorschutzschalter",315]
["Koordinaten",null,{"$f":"Startseite!C23","v":0},null,null,null,null,"Baujahr",null,{"$f":"Startseite!J23","v":0},null,null,null,null,null,null,null,null,null,null,null,null,null,null,null,null,null,null,null,null,null,null,null,null,null,null,null,350]
["Kontrollumfang / Ausgeführte Installation",null,null,null,null,null,null,"Norm",null,null,null,null,null,null,null,null,null,null,null,null,null,null,null,null,null,null,null,null,null,null,null,null,null,null,null,null,null,400]
[null,null,null,null,null,null,null,"Anlage",null,null,null,null,null,null,null,null,null,null,null,null,null,null,null,null,null,null,null,null,null,null,null,null,null,null,null,null,null,500]
[null,null,null,null,null,null,null,"Kontrollperiode",null,null,null,null,null,null,null,null,null,null,null,null,null,null,null,null,null,null,null,null,null,null,null,null,null,null,null,null,null,630]
[null,null,null,null,null,null,null,"Bemerkung",null," ",null,null,null,null,null,null,null,null,null,null,null,null,null,null,null,null,null,null,null,null,null,null,null,null,null,null,null,800]
["Technische Angaben",null,null,null,null,null,null,"Schutzorgan",null,null,null,null,null,null,null,null,null,null,null,null,null,null,null,null,null,null,null,null,null,null,null,null,null,null,null,null,null,1000]
["Anschluss der ",null,null,null,null,null,null,"Nennstrom",null,null,"A",null,null,null,null,null,null,null,null,null,null,null,null,null,null,null,null,null,null,null,null,null,null,null,null,null,null,1250]
["Installation",null,null,null,null,null,null,"Schutzsystem",null,null,null,null,null,null,null,null,null,null,null,null,null,null,null,null,null,null,null,null,null,null,null,null,null,null,null,null,null,1400]
["Messungen",null,null,null,null,null,null,"IK ANFANG Zuleitung L-PE",null,null,null,null,"A",null,null,null,null,null,null,null,null,null,null,null,null,null,null,null,null,null,null,null,null,null,null,null,null,1600]
["Isolationswiderstand",null,null,null,null,"MW",null,"IK ENDE Zuleitung L-PE",null,null,null,null,"A",null,null,null,null,null,null,null,null,null,null,null,null,null,null,null,null,null,null,null,null,null,null,null,null,2000]
["Differenzstrom",null,null,null,null,"mA",null,"IK ENDE Gruppenleitung L-PE(N)",null,null,null,null,"A",null,null,null,null,null,null,null,null,null,null,null,null,null,null,null,null,null,null,null,null,null,null,null,null,2500]
["Erder",null,null,null,null,"W",null,"Spannung L-PE",null,null,null,null,"V",null,null,null,null,null,null,null,null,null,null,null,null,null,null,null,null,null,null,null,null,null,null,null,null,3200]
["Schutzleiter",null,null,null,null,"W",null,"Drehrichtung",null,null,null,"P",null,null,null,null,null,null,null,null,null,null,null,null,null,null,null,null,null,null,null,null,null,null,null,null,null,4000]
["Zustand",null,null,null,null,null,null,null,null,null,null,null,null,null,null,null,null,null,null,null,null,null,null,null,null,null,null,null,null,null,null,null,null,null,null,null,null,5000]
[null,null,null,null,null,null,null,null,null,null,null,null,null,null,null,null,null,null,null,null,null,null,null,null,null,null,null,null,null,null,null,null,null,null,null,null,null,6300]
["Die Unterzeichnenden bestätigen, dass die Installationen gemäss NIV (insbesondere Art. 3 und 4) und den ",null,null,null,null,null,null,null,null,null,null,null,null,null,null,null,null,null,null,null,null,null,null,null,null,null,null,null,null,null,null,null,null,null,null,null,null,"2x100"]
["gültigen Normen geprüft wurden und den anerkannten Regeln der Technik entsprechen.",null,null,null,null,null,null,null,null,null,null,null,null,null,null,null,null,null,null,null,null,null,null,null,null,null,null,null,null,null,null,null,null,null,null,null,null,"2x125"]
["Dieses Dokument bildet den Sicherheitsnachweis für die erwähnten elektrischen Installationen im Sinne der NIV und  ist vom",null,null,null,null,null,null,null,null,null,null,null,null,null,null,null,null,null,null,null,null,null,null,null,null,null,null,null,null,null,null,null,null,null,null,null,null,"2x160"]
["Eigentümer aufzubewahren. Wer vorgeschriebene Kontrollen nicht oder in schwerwiegender Weise nicht korrekt ausführt oder",null,null,null,null,null,null,null,null,null,null,null,null,null,null,null,null,null,null,null,null,null,null,null,null,null,null,null,null,null,null,null,null,null,null,null,null,"2x200"]
["Installationen mit gefährlichen Mängeln dem Eigentümer übergibt, macht sich strafbar (NIV Art. 42 c).",null,null,null,null,null,null,null,null,null,null,null,null,null,null,null,null,null,null,null,null,null,null,null,null,null,null,null,null,null,null,null,null,null,null,null,null,"2x250"]
["Unterschrift Elektro-Installateur",null,null,null,null,null,null,"Unterschrift unabhängiges Kontrollorgan",null,null,null,null,null,null,null,null,null,null,null,null,null,null,null,null,null,null,null,null,null,null,null,null,null,null,null,null,null,"2x315"]
["Kontrollberechtigter",null,null,"Unterschriftsberechtigter",null,null,null,"Kontrollberechtigter",null,null,null,null,null,null,null,null,null,null,null,null,null,null,null,null,null,null,null,null,null,null,null,null,null,null,null,null,null,"2x400"]
[null,null,null,null,null,null,null,null,null,null,null,null,null,null,null,null,null,null,null,null,null,null,null,null,null,null,null,null,null,null,null,null,null,null,null,null,null,"2x500"]
[null,null,null,null,null,null,null,null,null,null,null," ",null,null,null,null,null,null,null,null,null,null,null,null,null,null,null,null,null,null,null,null,null,null,null,null,null,"2x630"]
[]
["Datum:",null,null,null,null,null,null,"Datum:"]
["Beilagen",null,null,null,null,null,null,"Verteiler"]
[]
[]
["Netzbetreiber / Inspektorat",null,null,null,null,"Stichprobe",null," ",null,"Ergebnisse"]
[{"$f":"Startseite!$C$25","v":0},null,null,null,null,null,null," "]
["Eingang",null,null," ",null,"Datum ",null,null,null,null," "]
["Visum",null,null,null,null,"Visum",null,null,null,null," "]

{"sheet":"MPP","index":7,"n_rows":55,"n_cols":27,"rows_kept":55,"cut":false,"hidden":false,"merged":[[16,0,17,6],[9,4,9,6],[10,2,10,6],[11,2,11,6],[12,2,12,6],[13,3,13,6],[7,3,7,6],[7,9,7,12],[8,2,8,5],[8,9,8,11],[8,12,8,13],[4,2,4,6],[4,9,4,13],[5,2,5,6],[5,9,5,13],[6,2,6,6],[6,10,6,13],[39,11,39,13],[15,9,15,12],[47,1,47,3],[40,1,40,3],[41,1,41,3],[42,1,42,3],[43,1,43,3],[44,1,44,3],[20,11,20,13],[35,7,35,9],[45,1,45,3],[46,1,46,3],[38,0,38,5],[35,0,35,5],[36,0,36,5],[15,0,15,6],[37,0,37,5],[51,9,51,10],[39,1,39,3],[39,4,39,5],[39,6,39,7],[39,8,39,10],[48,1,48,3],[51,12,51,13],[49,0,49,4],[53,0,54,3],[54,4,54,5],[54,10,54,13],[32,7,32,12],[31,10,31,13],[9,9,9,13],[10,9,10,13],[11,9,11,13],[12,9,12,13],[13,9,13,13],[14,9,14,12],[19,9,19,12],[16,9,16,12],[17,9,17,12]]}
[null,null,null,null,null,null,null,null,null,null,null,null,null,null,null,null,null,null,null,null,null,null,null,null,null,null,"Mängel"]
[]
[null,null,null,null,null,null,null,null,null,null,null,null,null,null,null,null,null,null,null,null,null,null,null,null,null,null,"Mängel festgestellt, durch Elektroinstallateur behoben"]
["Eigentümer der Installation",null,null,null,null,null,null,"Auftragnehmer",null,null,null,null,"I/K-Nr. ",{"$f":"IF(Startseite!E12=\"\",Startseite!N12,Startseite!E12)","v":0},null,null,null,null,null,null,null,null,null,null,null,null,"Keine Mängel vorhanden"]
["Name 1",null,{"$f":"Startseite!C6","v":0},null,null,null,null,"Name",null,{"$f":"IF(Startseite!C13=\"\",Startseite!J13,Startseite!C13)","v":0}]
["Name 2",null,{"$f":"Startseite!C7","v":" "},null,null,null,null,"Strasse, Nr.",null,{"$f":"IF(Startseite!C14=\"\",Startseite!J14,Startseite!C14)","v":0}]
["Strasse, Nr.",null,{"$f":"Startseite!C8","v":""},null,null,null,null,"PLZ, Ort",null,{"$f":"IF(Startseite!C15=\"\",Startseite!J15,Startseite!C15)","v":0},{"$f":"IF(Startseite!D15=\"\",Startseite!K15,Startseite!D15)","v":0}]
["PLZ,  Ort",null,{"$f":"Startseite!C9","v":3050},{"$f":"Startseite!D9","v":"Bern"},null,null,null,"Telefon",null,{"$f":"IF(Startseite!C16=\"\",Startseite!J16,Startseite!C16)","v":0}]
["Telefon",null,{"$f":"Startseite!C10","v":" "},null,null,null,null,"Datum",null,{"$f":"IF(SiNa!F15=\"\",SiNa!M15,SiNa!F15)","v":"00:00:00"}]
["Ort der Installation",null,null,"O-Nr.",{"$f":"Startseite!E18","v":0},null,null,"SD-Nr.",null,{"$f":"Startseite!J18","v":0}]
["Anlage",null,{"$f":"Startseite!C19","v":0},null,null,null,null,"Gebäudeart",null,{"$f":"Startseite!J19","v":0}]
["Stromkunde",null,{"$f":"Startseite!C20","v":0},null,null,null,null,"Zähler Nr.",null,{"$f":"Startseite!J20","v":0}]
["Strasse, Nr.",null,{"$f":"Startseite!C21","v":0},null,null,null,null,"Lage",null,{"$f":"Startseite!J21","v":0}]
["PLZ,  Ort",null,{"$f":"Startseite!C22","v":0},{"$f":"Startseite!D22","v":0},null,null,null,"Nutzung",null,{"$f":"Startseite!J22","v":0}]
["Kontrollumfang / Ausgeführte Installation",null,null,null,null,null,null,"Norm",null,{"$f":"SiNa!J22","v":0}]
[{"$f":"SiNa!A23","v":0},null,null,null,null,null,null,"Anlage",null,{"$f":"SiNa!J23","v":0}]
[{"$f":"SiNa!A24","v":0},null,null,null,null,null,null,"Kontrollperiode",null,{"$f":"SiNa!J24","v":0}]
[null,null,null,null,null,null,null,"Bemerkung"]
["Sichtprüfung"]
[null,null,null,null,null,null,null,null,null,{"$f":"SiNa!J28","v":0}]
[]
[]
[]
[]
[]
[]
[]
[]
["Messung und Funktionsprüfung"]
[]
[]
[]
[null,null,null,null,null,null,null," "]
["Spannung L-PE",null,{"$f":"SiNa!K32","v":0},"V",null,null,null,"Erder",{"$f":"SiNa!D32","v":0},"Ω"]
["Verwendete Messtechnik nach IEC 61010",null,null,null,null,null,null,"Prüfung durchgeführt nach"]
[null,null,null,null,null,null,null,{"$f":"SiNa!J22","v":0}]
[]
[]
[]
["Strom-kreis","Ort, Anlageteil Schaltgerätekomb.",null,null,"Leitung / Kabel",null,"Schutz- einrichutng",null,"Messungen",null,null,"Fehlerstromschutz-einrichtung"]
[" Nr.","Bezeichnung",null,null,"Art    Typ","Leiter (mm²)","Art Char.","IN          (A)","IK ENDE     (A)","RISO (MΩ)","RLOW    (Ω)","IN/Art (A)","I∆N             (mA)","Dt   (mS)"]
[" ",null,null,null," "," ",null,null,null,null,null," "," "," "]
[null,null,null,null,null,null,null,null,null,null,null,null,"  "," "]
[]
[]
[]
[]
[]
[]
["Schaltgerätekombination",null,null,null,null,null,null,"Dokumentation"]
[]
[]
["Prüfergebnis",null,null,null,"Unterschrift Auftragnehmer"]
[null,null,null,null,"Datum",null,null,"Kontrollberechtigter",null,null,"Unterschriftsberechtigter"]
[null,null,null,null,{"$f":"IF(Startseite!F17=\"\",Startseite!M17,Startseite!F17)","v":"00:00:00"},null,null,{"$f":"IF(SiNa!A44=\"\",SiNa!H44,SiNa!A44)","v":0},null,null,{"$f":"IF(SiNa!D44=\"\",SiNa!L44,SiNa!D44)","v":" "}]

{"sheet":"MP","index":8,"n_rows":37,"n_cols":22,"rows_kept":37,"cut":false,"hidden":false,"merged":[[6,0,8,0],[6,1,8,1],[4,14,4,17],[5,14,5,17],[36,3,36,4],[4,3,5,4],[4,5,4,7],[4,8,5,13],[3,1,3,4],[3,6,3,13],[3,15,3,20],[4,2,5,2],[4,18,5,20],[5,5,5,7]]}
[]
[]
[]
["Anlage",{"$f":"Startseite!C19","v":0},null,null,null,"SD-Nr.",{"$f":"Startseite!J18","v":0},null,null,null,null,null,null,null,"O-Nr.",{"$f":"Startseite!E18","v":0}]
["Strom-","Anlageteil","Ort","Leitung / Kabel",null,"Schutz-",null,null,"Messungen",null,null,null,null,null,"Fehlerstromschutz-",null,null,null,"Unternehmer"]
["kreis","Schaltgerätekomb.",null,null,null,"einrichtung",null,null,null,null,null,null,null,null,"einrichtung"]
["Nr.","Bezeichnung",null,"Art","Leiter ","Art","IN","U","IK ENDE","IK ENDE","RISO ","ILECK","RLOW    ","Dreh-","IN/Art","I∆N   ","Dt   ","Dt   ","I / K","Datum","Visum"]
[null,null,null,null,null,null,null,null,"L-PE","L-N",null,null,null,"feld",null,null,"1xIDN","5xIDN","Nr."]
[null,null,"Raum Nr.","Typ","(mm²)","Char.","(A)","(V)","(A)","(A)","(MΩ)","(mA)","(Ω)","(P)","(A)","(mA)","(mS)","(mS)"]
[]
[]
[]
[]
[]
[]
[]
[]
[]
[]
[]
[]
[]
[]
[]
[]
[]
[]
[]
[]
[]
[]
[]
[]
[null,null,null,null,null,null,null,null,null,null,null,null,null,null,null,null,null,null,null,null,null,1]
[null,null,null,"Unterschrift Auftragnehmer",null,null,null,null,null,null,null,null,null,null,null,null,null,null,null,null,null,1]
[null,null,null,"Datum",null,null,null,null,"Kontrollberechtigter",null,null,null,null,null,"Unterschriftsberechtigter",null,null,null,null,null,null,1]
[null,null,null,{"$f":"MPP!E55","v":"00:00:00"},null,null,null,null,{"$f":"MPP!H55","v":0},null,null,null,null,null,{"$f":"MPP!K55","v":" "},null,null,null,null,null,null,1]

{"sheet":"FM","index":9,"n_rows":56,"n_cols":14,"rows_kept":56,"cut":false,"hidden":true,"merged":[[40,2,40,5],[22,2,22,5],[22,11,22,13],[23,9,24,13],[34,12,34,13],[36,12,36,13],[39,10,39,13],[40,10,40,13],[26,0,31,13],[17,3,17,6],[17,10,17,13],[18,2,18,5],[18,9,18,12],[21,2,21,5],[19,9,19,12],[13,3,13,6],[13,9,13,13],[15,2,15,6],[15,9,15,13],[16,2,16,6],[16,9,16,13],[10,2,10,6],[10,9,10,13],[11,2,11,6],[11,9,11,13],[12,2,12,6],[12,9,12,13],[9,9,9,13],[4,2,4,6],[4,9,4,13],[5,2,5,6],[5,9,5,13],[6,2,6,6],[6,10,6,13],[7,3,7,6],[7,9,7,12],[8,2,8,5],[8,9,8,11],[8,12,8,13],[9,4,9,6]]}
[]
[]
[]
["Eigentümer der Installation",null,null,null,null,null,null,"Auftragnehmer",null,null,null,null,"I-Nr. ",{"$f":"Startseite!E12","v":0}]
["Name 1",null,{"$f":"Startseite!C6","v":0},null,null,null,null,"Name",null,{"$f":"Startseite!C13","v":0}]
["Name 2",null,{"$f":"Startseite!C7","v":" "},null,null,null,null,"Strasse, Nr.",null,{"$f":"Startseite!C14","v":0}]
["Strasse, Nr.",null,{"$f":"Startseite!C8","v":""},null,null,null,null,"PLZ, Ort",null,{"$f":"Startseite!C15","v":0},{"$f":"Startseite!D15","v":0}]
["PLZ,  Ort",null,{"$f":"Startseite!C9","v":3050},{"$f":"Startseite!D9","v":"Bern"},null,null,null,"Telefon",null,{"$f":"Startseite!C16","v":0}]
["Telefon",null,{"$f":"Startseite!C10","v":" "},null,null,null,null,"Datum",null,{"$f":"TODAY()","v":"2020-07-06"}]
["Ort der Installation",null,null,"O-Nr.",{"$f":"Startseite!E18","v":0},null,null,"SD-Nr.",null,{"$f":"Startseite!J18","v":0}]
["Anlage",null,{"$f":"Startseite!C19","v":0},null,null,null,null,"Gebäudeart",null,{"$f":"Startseite!J19","v":0}]
["Stromkunde",null,{"$f":"Startseite!C20","v":0},null,null,null,null,"Zähler Nr.",null,{"$f":"Startseite!J20","v":0}]
["Strasse, Nr.",null,{"$f":"Startseite!C21","v":0},null,null,null,null,"Lage",null,{"$f":"Startseite!J21","v":0}]
["PLZ,  Ort",null,{"$f":"Startseite!C22","v":0},{"$f":"Startseite!D22","v":0},null,null,null,"Nutzung",null,{"$f":"Startseite!J22","v":0}]
["Netzbetreiber",null,null,null,null,null,null,"Stromkunde"]
["Name",null,{"$f":"Startseite!C25","v":0},null,null,null,null,"Name",null,{"$f":"Startseite!J25","v":"swenex - swiss energy exchange Ltd"}]
["Strasse, Nr.",null,{"$f":"Startseite!C26","v":0},null,null,null,null,"Strasse, Nr.",null,{"$f":"Startseite!J26","v":"Postfach 2260"}]
["PLZ,  Ort",null,{"$f":"Startseite!C27","v":0},{"$f":"Startseite!D27","v":0},null,null,null,"PLZ,  Ort",null,{"$f":"Startseite!J27","v":"6010"},{"$f":"Startseite!K27","v":"Kriens 2"}]
["E-Mail",null,{"$f":"Startseite!C28","v":" "},null,null,null,null,"E-Mail",null,{"$f":"Startseite!J28","v":" "}]
["Installation",null,null,null,null,null,null,"Kontrollperiode",null,{"$f":"SiNa!J24","v":0}]
["Arbeiten ausgeführt gemäss den Bedingungen des Werkes?",null,null,null,null,null,null,"Zugang vor Ort"]
["Nummer IA"]
["Datum IA"]
["Installation ausgeführt entsprechend der Installationsanzeige?",null,null,null,null,null,null,"Bemerkung"]
[]
["Neue Beschreibung"]
[]
[]
[]
[]
[]
[]
["Anwendung der NIV"]
[]
["Die Schlusskontrolle wurde ausgeführt und der Sicherheitsnachweis dem Eigentümer zugestellt.",null,null,null,null,null,null,null,null,null,null,"Datum"]
[]
["Die Schlusskontrolle wurde ausgeführt und der Sicherheitsnachweis dem Eigentümer zugestellt.",null,null,null,null,null,null,null,null,null,null,"Datum"]
["Der Eigentümer wird eine Abnahmekontrolle von einem unabhängigen Kontrollorgan veranlassen."]
["Zuständig für das Aufgebot des unabhängigen Kontrollorgan"]
["Installateur",null,null,null,null,null,null,"Ort, Datum"]
["Name, Vorname",null,null,null,null,null,null,"Unterschrift"]
["Reserviert für die Netzbetreiberin"]
["Eingang FA",null,null,null,null,null,null,"Erste Mahnung"]
["Eingang SiNa",null,null,null,null,null,null,"Zweite Mahnung"]
[null,null,null,null,null,null,null,"Übergabe ESTI"]
[]
["Sachbearbeiter Netzbetreiberin",null,null,null,null,null,null,"Ort, Datum"]
["Name, Vorname",null,null,null,null,null,null,"Unterschrift"]
[]
["Bemerkung"]
[]
[]
[]
[]
[]
["Zirkulation",null,"1. ",null,"2.",null,"3.",null,"4.",null,"5.",null,"6."]

{"sheet":"BA","index":10,"n_rows":66,"n_cols":18,"rows_kept":66,"cut":false,"hidden":true,"merged":[[31,9,31,13],[4,2,4,8],[4,11,4,17],[5,2,5,8],[5,11,5,17],[6,2,6,8],[6,12,6,17],[7,3,7,8],[7,11,7,16],[8,11,8,13],[8,16,8,17],[9,9,9,11],[15,9,15,13],[13,3,13,8],[13,11,13,17],[19,1,19,17],[17,9,17,13],[10,2,10,8],[10,11,10,17],[11,2,11,8],[11,11,11,17],[12,2,12,8],[12,11,12,17],[15,1,15,5],[16,1,16,17],[25,9,25,13],[26,1,26,5],[26,9,26,13],[17,1,17,5],[18,1,18,5],[20,1,20,5],[21,1,21,5],[21,9,21,13],[20,9,20,13],[22,9,22,13],[23,1,23,5],[23,9,23,13],[24,1,24,5],[24,9,24,13],[18,9,18,13],[30,1,30,5],[30,9,30,13],[22,1,22,5],[25,1,25,5],[28,1,28,5],[32,1,32,5],[43,1,43,6],[34,1,34,13],[39,3,39,8],[40,3,40,8],[38,3,38,8],[37,3,37,8],[37,12,37,17],[38,12,38,17],[39,12,39,17],[40,12,40,17],[36,12,36,17],[36,3,36,8],[32,9,32,13],[31,1,31,5],[27,1,27,17],[28,9,28,13],[29,1,29,5],[29,9,29,13],[42,16,42,17],[43,16,43,17],[42,7,42,9],[43,7,43,9],[43,10,43,12],[42,13,42,15],[43,13,43,15],[33,1,33,5],[33,9,33,13],[46,1,46,6],[46,7,46,9],[46,10,46,12],[46,13,46,15],[46,16,46,17],[44,16,44,17],[45,1,45,6],[45,7,45,9],[45,10,45,12],[45,13,45,15],[45,16,45,17],[44,1,44,6],[44,7,44,9],[44,10,44,12],[44,13,44,15],[48,1,48,6],[48,7,48,9],[48,10,48,12],[48,13,48,15],[48,16,48,17],[47,1,47,6],[47,7,47,9],[47,10,47,12],[47,13,47,15],[47,16,47,17],[50,1,50,6],[50,7,50,9],[50,10,50,12],[50,13,50,15],[50,16,50,17],[49,1,49,6],[49,7,49,9],[49,10,49,12],[49,13,49,15],[49,16,49,17],[52,1,52,6],[52,7,52,9],[52,10,52,12],[52,13,52,15],[52,16,52,17],[51,1,51,6],[51,7,51,9],[51,10,51,12],[51,13,51,15],[51,16,51,17],[53,1,53,6],[53,7,53,9],[53,10,53,12],[53,13,53,15],[53,16,53,17],[106,1,106,6],[106,7,106,9],[106,10,106,12],[106,13,106,15],[106,16,106,17],[55,1,55,6],[55,7,55,9],[55,10,55,12],[55,13,55,15],[55,16,55,17],[54,1,54,6],[54,7,54,9],[54,10,54,12],[54,13,54,15],[54,16,54,17],[57,1,57,6],[57,7,57,9],[57,10,57,12],[57,13,57,15],[57,16,57,17],[56,1,56,6],[56,7,56,9],[56,10,56,12],[56,13,56,15],[56,16,56,17],[59,1,59,6],[59,7,59,9],[59,10,59,12],[59,13,59,15],[59,16,59,17],[58,1,58,6],[58,7,58,9],[58,10,58,12],[58,13,58,15],[58,16,58,17],[61,0,61,6],[63,0,63,17],[62,0,62,17],[64,0,64,17],[60,1,60,6],[60,7,60,9],[60,10,60,12],[60,13,60,15],[60,16,60,17],[66,1,66,6],[66,7,66,9],[66,10,66,12],[66,13,66,15],[66,16,66,17],[65,7,65,9],[65,10,65,12],[65,13,65,15],[65,16,65,17],[65,0,65,6],[68,1,68,6],[68,7,68,9],[68,10,68,12],[68,13,68,15],[68,16,68,17],[67,1,67,6],[67,7,67,9],[67,10,67,12],[67,13,67,15],[67,16,67,17],[70,1,70,6],[70,7,70,9],[70,10,70,12],[70,13,70,15],[70,16,70,17],[69,1,69,6],[69,7,69,9],[69,10,69,12],[69,13,69,15],[69,16,69,17],[72,1,72,6],[72,7,72,9],[72,10,72,12],[72,13,72,15],[72,16,72,17],[71,1,71,6],[71,7,71,9],[71,10,71,12],[71,13,71,15],[71,16,71,17],[74,7,74,9],[74,10,74,12],[74,13,74,15],[74,16,74,17],[73,1,73,6],[73,7,73,9],[73,10,73,12],[73,13,73,15],[73,16,73,17],[3,16,3,17],[9,4,9,8],[8,2,8,8],[78,1,78,6],[78,7,78,9],[78,10,78,12],[78,13,78,15],[78,16,78,17],[77,1,77,6],[77,7,77,9],[77,10,77,12],[77,13,77,15],[77,16,77,17],[76,1,76,6],[76,7,76,9],[76,10,76,12],[76,13,76,15],[76,16,76,17],[75,1,75,6],[75,7,75,9],[75,10,75,12],[75,13,75,15],[75,16,75,17],[74,1,74,6]]}
[]
[]
[]
["Auftraggeber",null,null,null,null,null,null,null,null,"Auftragnehmer",null,null,null,null,"I/K-Nr. ",null,{"$f":"IF(Startseite!E12=\"\",Startseite!N12,Startseite!E12)","v":0}]
["Firma",null,{"$f":"Startseite!C30","v":0},null,null,null,null,null,null,"Name",null,{"$f":"IF(Startseite!C13=\"\",Startseite!J13,Startseite!C13)","v":0}]
["Kontaktperson",null,{"$f":"Startseite!C31","v":0},null,null,null,null,null,null,"Strasse, Nr.",null,{"$f":"IF(Startseite!C14=\"\",Startseite!J14,Startseite!C14)","v":0}]
["Strasse, Nr.",null,{"$f":"Startseite!C32","v":0},null,null,null,null,null,null,"PLZ, Ort",null,{"$f":"IF(Startseite!C15=\"\",Startseite!J15,Startseite!C15)","v":0},{"$f":"IF(Startseite!D15=\"\",Startseite!K15,Startseite!D15)","v":0}]
["PLZ,  Ort",null,{"$f":"Startseite!C33","v":0},{"$f":"Startseite!D33","v":0},null,null,null,null,null,"Telefon",null,{"$f":"IF(Startseite!C16=\"\",Startseite!J16,Startseite!C16)","v":0}]
["E-Mail",null,{"$f":"Startseite!C34","v":0},null,null,null,null,null,null,"Datum",null,{"$f":"TODAY()","v":"2020-07-06"}]
["Ort der Installation",null,null,"O-Nr.",{"$f":"Startseite!E18","v":0},null,null,null,null,"Beschreibung"]
["Anlage",null,{"$f":"Startseite!C19","v":0},null,null,null,null,null,null,"SD-Nr.",null,{"$f":"Startseite!J18","v":0}]
["Stromkunde",null,{"$f":"Startseite!C20","v":0},null,null,null,null,null,null,"Auftrag"]
["Strasse, Nr.",null,{"$f":"Startseite!C21","v":0},null,null,null,null,null,null,"Situation vor Ort"]
["PLZ,  Ort",null,{"$f":"Startseite!C22","v":0},{"$f":"Startseite!D22","v":0},null,null,null,null,null,"Anwesende"]
["Punkt","Frage",null,null,null,null,"Inspektion","Kontrolle","Stichprobe","Bemerkung, Begründung",null,null,null,null,"erfüllt","teilweise erfüllt","nicht erfüllt","nicht relevant"]
[1,"Allgemeiner Eindruck der Arbeitsstelle",null,null,null,null,"x","x","x"]
[2,"Arbeitsantrag und Umsetzung"]
[2.1,"Ist ein Arbeitsantrag vorhanden und \nvom AnV + ArV unterzeichnet?",null,null,null,null,"x","x","x"]
[2.2000000000000002,"Stimmt die Beschriebene Tätigkeit mit \nder Tätigkeit vor Ort überein?",null,null,null,null,"x","x","x"]
[2.2999999999999998,"Inhaltpunkte des Arbeitsantrags und \nderen Korrektheit:"]
["2.3.1","Arbeitsmethode richtig ausgewählt?\n(R2.5.3.1 a-c2)",null,null,null,null,"x",null,"x"]
["2.3.2","Werden die Regeln zur Arbeitsmethode richtig angewendet?",null,null,null,null,"x",null,"x"]
["2.3.3","Sind die eingesetzten Arbeitnehmer genügend Qualifiziert? (Elektroinstallateur)",null,null,null,null,"x","x","x"]
["2.3.5","Ist eine PSAgE, PSAgA, PSAgC vorhanden? (Falls erforderlich)",null,null,null,null,"x","x","x"]
["2.3.7","Ist die PSAgE entsprechend der Stufe nach IK oder Vorsicherung korrekt?",null,null,null,null,"x",null,"x"]
["2.3.8","Ist isollierters Werkzeug erforderlich und eingesetzt (nicht erforderlich im Spannungsfreien Zustand)",null,null,null,null,"x",null,"x"]
["2.3.9","Falls erforderlich: Ist das isolierte Werkzeug in Ordnung?",null,null,null,null,"x",null,"x"]
[3,"Arbeitssicherheit"]
["3.1","Kennt der ArV die Notfall und Evak Organisation?",null,null,null,null,"x","x","x"]
["3.2","Sind Fluchtwege, Feuerlöscher, Notfall-\naphotheke, Sammelplatz bekannt?",null,null,null,null,"x","x","x"]
["3.3","Vorbeugende Massnahmen, z.B. Handschuhe, Schutzbrille, Schuhe?",null,null,null,null,"x","x","x"]
["3.4","Sind die Leitern geprüft, bzw. genügend hoch für die Tätigkeit?",null,null,null,null,"x","x","x"]
["3.5","Sind die Kennzeichnungen der Arbeitsstelle und die Gefahren genügend gekennzeichnet? ",null,null,null,null,"x","x","x"]
["3.7","Hat mind. 1 Person der Arbeitsstelle eine Ausbildung für CPR und AED?",null,null,null,null,"x","x","x"]
[null,"Total",null,null,null,null,null,null,null,null,null,null,null,null,{"$f":"COUNTIF(O16:O34,\"x\")","v":0},{"$f":"COUNTIF(P16:P34,\"x\")","v":0},{"$f":"COUNTIF(Q16:Q34,\"x\")","v":0},{"$f":"COUNTIF(R16:R34,\"x\")","v":0}]
["Ersteller des Berichts",null,null,null,null,null,null,null,null,"Kontrolle (wird durch Swisscom oder FM-Provider ausgefüllt)"]
["Art des Berichts",null,null,null,null,null,null,null,null,"FM Provider Visum",null,null," "]
["Firma",null,null,null,null,null,null,null,null,"Name, Vorname",null,null," "]
["Name, Vorname",null,null,null,null,null,null,null,null,"Swisscom Visum",null,null," "]
["Ort, Datum",null,null,null,null,null,null,null,null,"Name, Vorname",null,null,"  "]
["Unterschrift",null,null,null,null,null,null,null,null,null,null,null," "]
["Massnahmen (Wenn \"teilweise erfüllt\" oder \"nicht erfüllt\" zwingend)"]
["Punkt","Massnahme",null,null,null,null,null,"Termin\nErledigung",null,null,"Zuständig",null,null,"Datum \nErledigung",null,null,"Visum"]
[]
[]
[]
[]
[]
[]
[]
[]
[]
[]
[]
[]
[]
[]
[]
[]
[]
[]
["Allgemeine Bemerkungen"]
[]
[]
[]
["Prozess"]